bitfinex-derivatives/quotes_SOLF0:USTF0_20250416
["timestamp","ask_amount","ask_price","bid_price","bid_amount"]
[1744777100493,8.01171585,125.66,125.62,14.258]
[1744777100785,0.05291585,125.66,125.62,6.2972]
[1744777100990,0.05291585,125.66,125.64,7.9594]
[1744777102893,0.05291585,125.66,125.63,10.55508834]
[1744777103087,0.05291585,125.66,125.64,31.8]
[1744777103294,31.8,125.72,125.65,10.55508834]
[1744777103690,9.9931,125.76,125.67,10.55508834]
[1744777103996,33.8605,125.76,125.68,36.1209]
[1744777104183,0.05072796,125.73,125.71,0.05275907]
[1744777104591,42.4258163,125.73,125.71,0.05275907]
[1744777104793,7.9548,125.72,125.71,0.05275907]
[1744777105893,50.3803163,125.73,125.71,0.05275907]
[1744777106193,39.82522796,125.73,125.71,0.05275907]
[1744777107493,31.87072796,125.73,125.71,0.05275907]
[1744777107896,39.82492796,125.73,125.71,0.05275907]
[1744777108495,7.9548,125.72,125.71,0.05275907]
[1744777109696,50.3802163,125.73,125.71,0.05275907]
[1744777109895,32.74,125.86,125.71,18.56784741]
[1744777110097,10.55508834,125.83,125.76,7.9518]
[1744777110395,7.9494,125.81,125.74,32.74]
[1744777110697,10.55508834,125.81,125.75,7.9525]
[1744777110888,8.00293186,125.79,125.77,0.05373237]
[1744777112297,7.951,125.78,125.77,0.05373237]
[1744777112792,7.951,125.78,125.77,0.00300441]
[1744777112994,40.691,125.78,125.77,0.00300441]
[1744777113193,10.55508834,125.76,125.68,32.74]
[1744777113993,7.9533,125.75,125.7,7.9558]
[1744777114190,0.06023977,125.73,125.71,0.05395058]
[1744777115396,7.9548,125.72,125.71,0.05395058]
[1744777116595,8.01453977,125.73,125.71,0.05395058]
[1744777116900,0.06023977,125.73,125.71,0.05395058]
[1744777117095,7.9519,125.77,125.74,7.9531]
[1744777117297,32.74,125.81,125.73,10.55508834]
[1744777117498,10.55508834,125.82,125.74,2.2055]
[1744777117699,10.55508834,125.82,125.75,7.9528]
[1744777118198,7.9509,125.79,125.77,0.05503397]
[1744777119102,8.01126409,125.8,125.77,0.05503397]
[1744777119399,0.06126409,125.8,125.77,0.05503397]
[1744777119707,7.9508,125.79,125.77,0.05503397]
[1744777120504,7.951,125.78,125.77,0.05503397]
[1744777124307,7.9505,125.79,125.77,0.05503397]
[1744777124609,10.55508834,125.78,125.77,0.05503397]
[1744777124811,10.55508834,125.78,125.72,32.74]
[1744777125010,10.55508834,125.76,125.72,32.74]
[1744777125209,10.55508834,125.76,125.7,7.956]
[1744777125510,10.55508834,125.76,125.69,32.72]
[1744777125813,0.05589965,125.74,125.71,8.00549437]
[1744777126210,8.00989965,125.74,125.71,0.05019437]
[1744777126509,8.00989965,125.74,125.71,8.00509437]
[1744777127315,7.9543,125.73,125.71,0.05019437]
[1744777127515,0.05589965,125.74,125.71,0.05019437]
[1744777127815,7.9548,125.72,125.71,0.05019437]
[1744777128815,7.9543,125.73,125.71,0.05019437]
[1744777130116,8.00959965,125.74,125.71,8.00529437]
[1744777130415,0.05589965,125.74,125.71,0.05019437]
[1744777131918,7.9542,125.73,125.71,0.05019437]
[1744777132417,7.9548,125.72,125.71,0.05019437]
[1744777134919,7.9575,125.68,125.66,32.74]
[1744777135218,32.74,125.71,125.66,7.9583]
[1744777135419,7.9563,125.7,125.63,43.29508834]
[1744777135815,32.74,125.71,125.63,43.29508834]
[1744777136017,0.05839617,125.68,125.63,43.29508834]
[1744777136519,0.05839617,125.68,125.67,7.9579]
[1744777138521,0.05839617,125.68,125.63,43.29508834]
[1744777138723,8.01609617,125.68,125.63,32.74]
[1744777139222,0.05839617,125.68,125.63,32.74]
[1744777139723,0.05839617,125.68,125.65,7.9588]
[1744777140019,0.05839617,125.68,125.63,32.74]
[1744777140226,0.05839617,125.68,125.64,7.9595]
[1744777140623,8.01609617,125.68,125.63,32.74]
[1744777140925,0.05839617,125.68,125.63,32.74]
[1744777141124,0.05839617,125.68,125.63,43.29508834]
[1744777141722,7.9544,125.73,125.67,10.55508834]
[1744777141921,2.1711,125.78,125.69,10.55508834]
[1744777142129,2.1473,125.8,125.75,7.9526]
[1744777142326,7.9513,125.78,125.75,7.9526]
[1744777142528,12.70238834,125.8,125.73,32.14]
[1744777142723,0.05648243,125.78,125.75,0.0507618]
[1744777143021,7.9519,125.77,125.75,0.0507618]
[1744777144128,7.9522,125.76,125.75,0.0507618]
[1744777144726,7.9519,125.77,125.75,0.0507618]
[1744777145230,7.9522,125.76,125.75,0.0507618]
[1744777147427,18.50728834,125.76,125.75,0.0507618]
[1744777148133,7.9519,125.77,125.75,0.0507618]
[1744777148932,7.9522,125.76,125.75,0.0507618]
[1744777152735,32.19648243,125.78,125.75,0.0507618]
[1744777152934,0.05648243,125.78,125.75,0.0507618]
[1744777153330,0.05648243,125.78,125.77,7.9516]
[1744777154035,2.0071,125.83,125.76,32.14]
[1744777154334,7.9492,125.81,125.76,32.14]
[1744777154535,2.0071,125.83,125.76,32.14]
[1744777154834,7.95,125.8,125.78,0.05323075]
[1744777156537,7.9503,125.79,125.78,0.05323075]
[1744777159540,32.19745662,125.81,125.78,0.05323075]
[1744777159745,0.05745662,125.81,125.78,0.05323075]
[1744777159940,0.05745662,125.81,125.78,8.00393075]
[1744777160139,0.05745662,125.81,125.78,0.05323075]
[1744777160641,7.9503,125.79,125.78,0.05323075]
[1744777164147,18.51508834,125.79,125.7,1.9986]
[1744777164349,38.4421,125.78,125.66,2.0553]
[1744777164548,7.9552,125.72,125.68,7.9571]
[1744777165142,8.00805881,125.71,125.69,0.05553984]
[1744777165348,0.05255881,125.71,125.69,0.05553984]
[1744777167151,8.00805881,125.71,125.69,0.05553984]
[1744777168050,7.956,125.7,125.69,0.05553984]
[1744777172654,8.00825881,125.71,125.69,0.05553984]
[1744777173046,0.05255881,125.71,125.69,0.05553984]
[1744777173248,6.3221,125.78,125.7,32.88]
[1744777173451,32.88,125.8,125.71,1.998]
[1744777173950,32.88,125.8,125.73,7.9539]
[1744777174454,0.05624505,125.78,125.75,0.05499089]
[1744777174853,7.952,125.77,125.75,0.05499089]
[1744777175052,0.05624505,125.78,125.75,0.05499089]
[1744777175653,7.9522,125.76,125.75,0.05499089]
[1744777176358,7.9519,125.77,125.75,0.05499089]
[1744777177256,7.9522,125.76,125.75,0.05499089]
[1744777185565,0.05624505,125.78,125.75,0.05499089]
[1744777185762,0.05624505,125.78,125.75,32.93499089]
[1744777186159,0.05624505,125.78,125.76,7.9522]
[1744777187964,0.05624505,125.78,125.77,7.9516]
[1744777188462,0.05624505,125.78,125.76,7.9519]
[1744777188665,8.00754505,125.78,125.75,32.93499089]
[1744777188965,0.05624505,125.78,125.75,32.93499089]
[1744777189170,0.05624505,125.78,125.76,7.9522]
[1744777189966,8.00724505,125.78,125.75,40.88749089]
[1744777191869,0.05624505,125.78,125.76,7.9521]
[1744777192370,0.05624505,125.78,125.75,32.93499089]
[1744777193071,7.9522,125.76,125.75,32.93499089]
[1744777193471,0.05624505,125.78,125.75,32.93499089]
[1744777193672,7.952,125.77,125.75,32.93499089]
[1744777195072,7.9522,125.76,125.75,32.93499089]
[1744777197068,7.9522,125.76,125.75,0.05499089]
[1744777197473,7.9518,125.77,125.75,0.05499089]
[1744777198072,7.9516,125.77,125.75,0.05499089]
[1744777198272,0.05624505,125.78,125.75,0.05499089]
[1744777198473,7.9519,125.77,125.75,0.05499089]
[1744777198872,0.05624505,125.78,125.75,0.05499089]
[1744777199373,7.9522,125.76,125.75,0.05499089]
[1744777202875,10.58831353,125.76,125.68,32.74]
[1744777203075,10.58831353,125.74,125.68,32.74]
[1744777203677,7.9556,125.71,125.68,32.74]
[1744777203880,10.58831353,125.74,125.68,40.697]
[1744777204078,10.58831353,125.74,125.67,4.2412]
[1744777204079,10.63862901,125.72,125.7,0.05152498]
[1744777204280,7.9554,125.71,125.7,0.05152498]
[1744777204875,8.00531548,125.72,125.7,0.05152498]
[1744777205173,0.05031548,125.72,125.7,0.05152498]
[1744777205380,7.9554,125.71,125.7,0.05152498]
[1744777207581,7.9574,125.68,125.65,40.6989]
[1744777207982,43.32831353,125.72,125.66,7.9585]
[1744777208283,7.957,125.69,125.66,7.9585]
[1744777208582,0.0528809,125.69,125.67,7.9579]
[1744777209884,8.0096809,125.69,125.67,7.9579]
[1744777210084,8.0096809,125.69,125.66,7.9583]
[1744777210280,10.64119443,125.69,125.62,4.2426]
[1744777211678,7.9575,125.68,125.65,7.9589]
[1744777212181,7.958,125.67,125.62,4.2426]
[1744777212485,0.05850053,125.66,125.64,7.9595]
[1744777212876,8.01750053,125.66,125.63,7.9604]
[1744777213082,0.05850053,125.66,125.63,7.9604]
[1744777213282,0.05850053,125.66,125.62,4.2426]
[1744777213487,7.9595,125.65,125.62,12.2033]
[1744777213684,0.05850053,125.66,125.62,12.2033]
[1744777213685,0.05850053,125.66,125.62,4.2426]
[1744777214688,0.05850053,125.66,125.63,7.9603]
[1744777214985,0.05850053,125.66,125.62,2.1235]
[1744777215181,0.05850053,125.66,125.61,34.7526]
[1744777215891,0.05850053,125.66,125.61,32.74]
[1744777216482,7.9595,125.65,125.61,32.74]
[1744777216991,7.9595,125.65,125.62,7.961]
[1744777217393,8.01730053,125.66,125.61,32.74]
[1744777217591,8.01730053,125.66,125.63,7.9601]
[1744777218593,0.05850053,125.66,125.62,7.9608]
[1744777218794,0.05850053,125.66,125.61,32.74]
[1744777218988,10.58831353,125.63,125.4,538.4606]
[1744777219193,0.05783296,125.54,125.45,14.69451353]
[1744777219392,0.0526448,125.51,125.47,10.58831353]
[1744777219596,0.0526448,125.51,125.5,7.9687]
[1744777220196,0.0526448,125.51,125.47,43.34831353]
[1744777221198,0.0526448,125.51,125.47,32.76]
[1744777221601,0.0526448,125.51,125.48,10.58831353]
[1744777221803,0.0526448,125.51,125.5,7.9687]
[1744777224199,32.78,125.56,125.48,10.58831353]
[1744777225202,0.05088213,125.53,125.51,0.05657145]
[1744777226905,0.05088213,125.53,125.51,8.02457145]
[1744777228304,0.05088213,125.53,125.51,0.05657145]
[1744777228802,0.05088213,125.53,125.51,8.02457145]
[1744777229003,0.05088213,125.53,125.51,0.05657145]
[1744777229406,0.05088213,125.53,125.51,8.02437145]
[1744777230205,0.05088213,125.53,125.51,0.05657145]
[1744777231605,0.05088213,125.53,125.52,7.9674]
[1744777231908,0.05088213,125.53,125.51,0.05657145]
[1744777232103,0.05088213,125.53,125.51,8.02457145]
[1744777232906,0.05088213,125.53,125.52,7.9674]
[1744777233308,4.0283,125.6,125.51,44.46488498]
[1744777233506,33.82,125.6,125.53,10.58831353]
[1744777233909,33.82,125.6,125.52,6.4373]
[1744777234105,7.9633,125.59,125.52,6.4373]
[1744777234505,0.05021487,125.57,125.54,0.05698904]
[1744777234705,0.05021487,125.57,125.55,7.9654]
[1744777234908,0.05021487,125.57,125.54,0.05698904]
[1744777235611,8.01491487,125.57,125.54,0.05698904]
[1744777236006,8.01491487,125.57,125.54,8.02278904]
[1744777236208,0.05021487,125.57,125.54,0.05698904]
[1744777237311,10.6385284,125.57,125.54,0.05698904]
[1744777237512,33.82,125.56,125.54,0.05698904]
[1744777237811,7.9672,125.53,125.49,7.9691]
[1744777238112,10.58831353,125.55,125.48,2.1824]
[1744777238307,7.9672,125.53,125.49,7.969]
[1744777238812,0.05283764,125.52,125.5,0.05740303]
[1744777239508,21.17662706,125.51,125.36,15.9553]
[1744777239712,18.55871353,125.48,125.44,7.9724]
[1744777240107,7.9704,125.48,125.44,7.9724]
[1744777240411,12.66731353,125.5,125.39,44.40831353]
[1744777240610,0.05615296,125.45,125.4,1.45830147]
[1744777240806,0.05615296,125.45,125.41,10.58831353]
[1744777241010,0.05615296,125.45,125.44,7.9725]
[1744777241212,46.53841353,125.52,125.43,44.40831353]
[1744777241615,7.9691,125.5,125.46,7.9709]
[1744777241809,46.53841353,125.52,125.44,2.0416]
[1744777242009,35.9501,125.52,125.45,4.3132]
[1744777242311,35.9501,125.52,125.47,0.05093721]
[1744777242312,0.0524953,125.5,125.47,0.05093721]
[1744777242610,0.0524953,125.5,125.47,8.02113721]
[1744777245515,0.0524953,125.5,125.47,0.05093721]
[1744777246114,0.0524953,125.5,125.48,7.9696]
[1744777246315,0.0524953,125.5,125.47,0.05093721]
[1744777247922,0.0524953,125.5,125.49,7.9693]
[1744777248622,2.095,125.56,125.52,7.9671]
[1744777248821,35.9119,125.57,125.49,10.58831353]
[1744777249020,7.965,125.56,125.5,4.2973]
[1744777249219,7.965,125.56,125.53,7.9668]
[1744777249719,0.05118279,125.56,125.54,7.9657]
[1744777249925,0.05118279,125.56,125.53,0.06123116]
[1744777250324,0.05118279,125.56,125.53,8.02773116]
[1744777250524,0.05118279,125.56,125.53,0.06123116]
[1744777251316,7.9659,125.55,125.53,0.06123116]
[1744777252324,0.05118279,125.56,125.53,0.06123116]
[1744777252927,7.9656,125.55,125.53,0.06123116]
[1744777253527,8.01638279,125.56,125.53,8.02793116]
[1744777253826,0.05118279,125.56,125.53,8.02793116]
[1744777254029,8.01648279,125.56,125.53,8.02793116]
[1744777258329,8.01648279,125.56,125.54,7.966]
[1744777258330,8.01628279,125.56,125.54,7.966]
[1744777258519,8.01628279,125.56,125.53,0.06123116]
[1744777258926,7.9656,125.55,125.53,0.06123116]
[1744777259126,0.05118279,125.56,125.53,0.06123116]
[1744777259729,8.01648279,125.56,125.53,0.06123116]
[1744777259932,0.05118279,125.56,125.53,0.06123116]
[1744777260231,7.9662,125.54,125.53,0.06123116]
[1744777262529,7.9659,125.55,125.53,0.06123116]
[1744777262735,0.05118279,125.56,125.53,0.06123116]
[1744777262931,0.05118279,125.56,125.53,33.80123116]
[1744777263136,0.05118279,125.56,125.55,7.9655]
[1744777269041,0.05118279,125.56,125.54,7.9659]
[1744777269438,0.05118279,125.56,125.53,37.84443116]
[1744777269735,0.05118279,125.56,125.55,10.58831353]
[1744777270139,0.05118279,125.56,125.55,18.55381353]
[1744777270635,7.9627,125.6,125.56,7.9643]
[1744777270839,7.9627,125.6,125.55,10.58831353]
[1744777271634,0.06031278,125.59,125.56,0.0561488]
[1744777271841,0.06031278,125.59,125.57,7.9643]
[1744777272041,0.06031278,125.59,125.57,44.32831353]
[1744777272437,0.06031278,125.59,125.58,7.9636]
[1744777273244,0.06031278,125.59,125.57,41.704]
[1744777273443,0.06031278,125.59,125.57,33.74]
[1744777273945,0.06031278,125.59,125.57,41.7039]
[1744777274645,0.06031278,125.59,125.56,0.0561488]
[1744777275140,7.9641,125.58,125.56,0.0561488]
[1744777275345,0.06031278,125.59,125.56,0.0561488]
[1744777275746,7.9642,125.58,125.56,0.0561488]
[1744777276648,0.06031278,125.59,125.56,0.0561488]
[1744777277947,10.58831353,125.58,125.51,33.74]
[1744777278144,14.93241353,125.58,125.51,33.74]
[1744777278456,14.93241353,125.58,125.52,7.9674]
[1744777278957,7.9661,125.55,125.54,0.0520173]
[1744777279749,7.9664,125.54,125.51,41.7077]
[1744777279954,44.38298103,125.56,125.48,33.74]
[1744777280247,2.002,125.55,125.48,33.74]
[1744777280449,7.9671,125.53,125.5,7.9684]
[1744777280756,8.02747923,125.53,125.5,8.02225092]
[1744777281258,8.02747923,125.53,125.5,0.05385092]
[1744777281656,8.02747923,125.53,125.5,8.02225092]
[1744777281957,7.9675,125.52,125.5,8.02225092]
[1744777282253,7.9681,125.51,125.5,0.05385092]
[1744777282451,44.32831353,125.52,125.43,33.74]
[1744777282650,10.58831353,125.5,125.43,33.74]
[1744777283155,2.1533,125.49,125.43,33.74]
[1744777283456,0.06036369,125.47,125.43,33.74]
[1744777283652,8.03126369,125.47,125.44,7.9722]
[1744777283956,0.06036369,125.47,125.43,33.74]
[1744777286359,0.06036369,125.47,125.46,7.9713]
[1744777288563,33.74,125.55,125.46,10.58831353]
[1744777288858,33.74,125.55,125.47,33.74]
[1744777289050,7.9671,125.53,125.5,7.9684]
[1744777289256,33.74,125.55,125.5,7.9684]
[1744777289460,33.74,125.55,125.47,37.8403]
[1744777289659,0.05955386,125.52,125.5,0.05854946]
[1744777290561,8.02745386,125.52,125.5,0.05854946]
[1744777290753,0.05955386,125.52,125.5,0.05854946]
[1744777291256,7.9681,125.51,125.5,0.05854946]
[1744777291458,33.46,125.51,125.44,33.46]
[1744777291652,7.9697,125.49,125.44,33.46]
[1744777291860,7.9697,125.49,125.46,7.9709]
[1744777292459,8.02547288,125.49,125.46,7.9709]
[1744777293459,7.9701,125.48,125.44,33.46]
[1744777293660,0.05577288,125.49,125.44,33.46]
[1744777293869,0.05577288,125.49,125.41,37.6859]
[1744777294164,0.05220867,125.46,125.44,7.9721]
[1744777294462,7.9722,125.45,125.42,7.9733]
[1744777295067,8.02370867,125.46,125.42,7.9733]
[1744777295267,8.02370867,125.46,125.43,7.973]
[1744777295763,0.05220867,125.46,125.41,37.6859]
[1744777296159,0.05220867,125.46,125.41,48.27421353]
[1744777297365,0.05220867,125.46,125.41,37.6859]
[1744777297669,0.05220867,125.46,125.44,7.9725]
[1744777297866,0.05220867,125.46,125.41,48.27421353]
[1744777298059,0.05220867,125.46,125.45,7.9719]
[1744777305684,10.0417,125.53,125.45,44.06831353]
[1744777305875,10.0417,125.53,125.46,2.1075]
[1744777306075,10.0417,125.53,125.5,7.9684]
[1744777306581,10.0951655,125.53,125.5,8.02616351]
[1744777307281,2.1278655,125.53,125.51,7.9681]
[1744777307484,0.0534655,125.53,125.5,0.05776351]
[1744777307882,0.0534655,125.53,125.52,7.9674]
[1744777308880,0.0534655,125.53,125.5,0.05776351]
[1744777309083,8.0206655,125.53,125.5,0.05776351]
[1744777309583,7.9675,125.52,125.5,0.05776351]
[1744777312182,7.9681,125.51,125.5,0.05776351]
[1744777313282,7.9706,125.47,125.43,33.48]
[1744777313786,44.06831353,125.51,125.45,7.9719]
[1744777313983,7.9704,125.48,125.45,7.9719]
[1744777314385,0.05120399,125.48,125.44,7.9723]
[1744777314981,0.05120399,125.48,125.43,33.48]
[1744777315185,0.05120399,125.48,125.43,44.06831353]
[1744777315383,0.05120399,125.48,125.43,33.48]
[1744777315587,0.05120399,125.48,125.46,7.9709]
[1744777318190,33.48,125.55,125.46,10.58831353]
[1744777318391,3.35570814,125.54,125.47,33.48]
[1744777318689,7.9678,125.52,125.48,7.9698]
[1744777319190,0.05690293,125.51,125.49,0.05120399]
[1744777320390,0.05690293,125.51,125.49,8.02050399]
[1744777320590,0.05690293,125.51,125.49,0.05120399]
[1744777320986,0.05690293,125.51,125.49,8.02030399]
[1744777321188,0.05690293,125.51,125.49,0.05120399]
[1744777322290,0.05690293,125.51,125.49,8.02040399]
[1744777322987,0.05690293,125.51,125.49,0.05120399]
[1744777323390,7.9687,125.5,125.49,0.05120399]
[1744777323990,11.33646881,125.5,125.49,0.05120399]
[1744777324291,8.02530293,125.51,125.49,0.05120399]
[1744777324490,0.05690293,125.51,125.49,0.05120399]
[1744777324686,0.05690293,125.51,125.5,7.9687]
[1744777324989,0.05690293,125.51,125.49,0.05120399]
[1744777325387,0.05690293,125.51,125.49,8.02030399]
[1744777325582,0.05690293,125.51,125.49,0.05120399]
[1744777326091,0.05690293,125.51,125.5,7.9687]
[1744777326592,0.05690293,125.51,125.49,8.02020399]
[1744777326891,0.05690293,125.51,125.49,0.05120399]
[1744777327189,0.05690293,125.51,125.5,7.9687]
[1744777330596,0.05690293,125.51,125.49,0.05120399]
[1744777331594,0.05690293,125.51,125.49,8.02020399]
[1744777332890,8.02500293,125.51,125.49,0.05120399]
[1744777333091,0.05690293,125.51,125.49,0.05120399]
[1744777333496,0.05690293,125.51,125.49,8.02020399]
[1744777335589,0.05690293,125.51,125.49,0.05120399]
[1744777335795,3.3667827,125.5,125.49,0.05120399]
[1744777336098,0.05690293,125.51,125.49,0.05120399]
[1744777336393,0.05690293,125.51,125.5,7.9687]
[1744777338998,0.05690293,125.51,125.49,0.05120399]
[1744777339792,0.05690293,125.51,125.49,8.02020399]
[1744777340297,8.02510293,125.51,125.49,0.05120399]
[1744777340697,0.05690293,125.51,125.49,0.05120399]
[1744777340997,8.02520293,125.51,125.49,0.05120399]
[1744777342396,0.05690293,125.51,125.49,0.05120399]
[1744777342894,3.37127843,125.5,125.49,0.05120399]
[1744777343700,11.33997843,125.5,125.49,0.05120399]
[1744777345599,7.9728,125.44,125.41,7.974]
[1744777345803,33.64,125.46,125.41,7.974]
[1744777346005,3.36997172,125.45,125.41,7.974]
[1744777346203,33.64,125.46,125.41,7.974]
[1744777346502,7.9726,125.44,125.4,7.9748]
[1744777346703,0.05377249,125.43,125.4,7.9748]
[1744777346902,0.05377249,125.43,125.38,6.2319]
[1744777347303,0.05377249,125.43,125.4,7.9745]
[1744777347495,0.05377249,125.43,125.38,6.2319]
[1744777348504,0.05377249,125.43,125.4,7.9745]
[1744777348805,0.05377249,125.43,125.39,10.58831353]
[1744777349007,0.05377249,125.43,125.42,7.9738]
[1744777349500,33.64,125.49,125.45,7.9715]
[1744777350011,33.64,125.49,125.41,33.64]
[1744777350012,3.36536966,125.48,125.41,33.64]
[1744777350210,3.36536966,125.47,125.42,7.9735]
[1744777350511,3.4234527,125.46,125.43,0.05061456]
[1744777350711,0.05957601,125.46,125.43,0.05061456]
[1744777350913,8.03117601,125.46,125.43,0.05061456]
[1744777351204,0.05957601,125.46,125.43,0.05061456]
[1744777351413,0.05957601,125.46,125.44,7.9725]
[1744777351711,0.05957601,125.46,125.43,0.05061456]
[1744777354114,3.36219489,125.45,125.43,0.05061456]
[1744777354312,2.26167601,125.46,125.43,0.05061456]
[1744777355011,7.9725,125.45,125.43,0.05061456]
[1744777356309,10.23317601,125.46,125.43,0.05061456]
[1744777357515,7.9719,125.45,125.43,0.05061456]
[1744777357909,2.26167601,125.46,125.43,0.05061456]
[1744777358713,2.26167601,125.46,125.44,7.9722]
[1744777359714,2.26167601,125.46,125.43,0.05061456]
[1744777359914,0.05957601,125.46,125.43,0.05061456]
[1744777360413,0.05957601,125.46,125.44,7.9721]
[1744777361513,0.05957601,125.46,125.43,0.05061456]
[1744777363112,0.05957601,125.46,125.45,7.9719]
[1744777365319,0.05957601,125.46,125.43,0.05061456]
[1744777365819,7.9724,125.45,125.43,0.05061456]
[1744777366019,0.05957601,125.46,125.43,0.05061456]
[1744777366911,0.05957601,125.46,125.45,7.9719]
[1744777368821,0.05957601,125.46,125.44,7.9722]
[1744777369120,0.05957601,125.46,125.45,7.9719]
[1744777369718,0.05957601,125.46,125.43,8.02371456]
[1744777370120,8.03117601,125.46,125.43,8.02371456]
[1744777371314,0.05957601,125.46,125.43,8.02371456]
[1744777371520,0.05957601,125.46,125.43,0.05061456]
[1744777372421,33.33957601,125.46,125.43,0.05061456]
[1744777372623,41.31127601,125.46,125.43,8.02371456]
[1744777373525,7.9721,125.45,125.43,0.05061456]
[1744777374925,41.31117601,125.46,125.43,8.02371456]
[1744777376527,7.972,125.45,125.43,8.02371456]
[1744777376728,33.33957601,125.46,125.43,0.05061456]
[1744777377027,7.9723,125.45,125.43,0.05061456]
[1744777378527,33.33957601,125.46,125.43,0.05061456]
[1744777378727,7.9725,125.44,125.43,0.05061456]
[1744777379125,33.33957601,125.46,125.43,0.05061456]
[1744777379326,0.05957601,125.46,125.43,0.05061456]
[1744777379830,0.05957601,125.46,125.44,7.9722]
[1744777380129,0.05957601,125.46,125.43,0.05061456]
[1744777380429,8.03117601,125.46,125.43,8.02341456]
[1744777380730,0.05957601,125.46,125.43,0.05061456]
[1744777381330,7.9722,125.45,125.43,0.05061456]
[1744777381729,0.05957601,125.46,125.43,0.05061456]
[1744777382327,8.03137601,125.46,125.43,8.02381456]
[1744777382531,0.05957601,125.46,125.43,0.05061456]
[1744777383330,7.9722,125.45,125.43,0.05061456]
[1744777383932,8.03117601,125.46,125.43,8.02361456]
[1744777384624,0.05957601,125.46,125.43,0.05061456]
[1744777384926,607.38,125.53,125.45,10.58831353]
[1744777385126,3.36149013,125.52,125.47,10.58831353]
[1744777385332,146.72599614,125.56,125.49,10.58831353]
[1744777385631,3.36156266,125.55,125.49,44.16831353]
[1744777385834,0.05743047,125.53,125.51,0.05710538]
[1744777386226,0.05743047,125.53,125.51,10.64541891]
[1744777386428,0.05743047,125.53,125.52,7.9674]
[1744777387528,37.7142,125.59,125.56,7.9648]
[1744777387729,11.32356487,125.58,125.51,10.58831353]
[1744777387934,7.9641,125.58,125.51,10.58831353]
[1744777388231,3.35931149,125.57,125.51,10.58831353]
[1744777388430,7.9643,125.57,125.51,10.58831353]
[1744777388632,0.05213444,125.55,125.53,8.0262618]
[1744777388933,0.05213444,125.55,125.53,0.0598618]
[1744777389431,0.05213444,125.55,125.54,7.9662]
[1744777389733,0.05213444,125.55,125.53,0.0598618]
[1744777390429,0.05213444,125.55,125.53,8.0260618]
[1744777390838,7.9662,125.54,125.53,0.0598618]
[1744777391330,44.20044797,125.55,125.49,41.5489]
[1744777391537,44.20044797,125.55,125.49,7.9689]
[1744777391833,7.9684,125.51,125.47,7.9701]
[1744777392038,7.9684,125.51,125.46,33.56]
[1744777392231,10.58831353,125.53,125.46,33.56]
[1744777392431,0.05058423,125.5,125.47,0.05169694]
[1744777392632,0.05058423,125.5,125.48,7.9697]
[1744777393132,0.05058423,125.5,125.49,7.9693]
[1744777393837,0.05058423,125.5,125.48,7.9696]
[1744777394338,0.05058423,125.5,125.47,0.05169694]
[1744777394639,0.05058423,125.5,125.49,7.9693]
[1744777394839,33.56,125.55,125.47,10.64001047]
[1744777395035,7.965,125.56,125.53,7.9662]
[1744777395840,8.02486197,125.56,125.53,8.01842185]
[1744777397736,0.05986197,125.56,125.53,10.64053538]
[1744777397936,0.05986197,125.56,125.54,33.56]
[1744777398437,0.05986197,125.56,125.55,7.9655]
[1744777399243,0.05986197,125.56,125.54,41.526]
[1744777403247,0.05986197,125.56,125.54,33.56]
[1744777403547,0.05986197,125.56,125.53,8.01872185]
[1744777403846,8.02516197,125.56,125.53,8.01872185]
[1744777407251,0.05986197,125.56,125.54,7.9662]
[1744777408752,0.05986197,125.56,125.53,0.05222185]
[1744777408753,0.05986197,125.56,125.55,7.9655]
[1744777429169,3.43483267,125.56,125.55,7.9655]
[1744777432575,6.80091488,125.59,125.57,7.9637]
[1744777432776,3.37877291,125.58,125.57,7.9637]
[1744777435575,0.05041105,125.59,125.57,7.9637]
[1744777435770,3.37801404,125.58,125.57,7.9637]
[1744777436072,0.05041105,125.59,125.58,7.9636]
[1744777436274,3.4278129,125.59,125.58,7.9636]
[1744777436474,3.42776713,125.59,125.58,7.9636]
[1744777438377,3.42776713,125.59,125.57,7.964]
[1744777438676,6.85132593,125.59,125.57,7.964]
[1744777439172,0.05041105,125.59,125.58,7.9636]
[1744777439377,3.4264942,125.59,125.58,7.9636]
[1744777439573,0.05041105,125.59,125.58,7.9636]
[1744777442383,573.44,125.67,125.62,7.9606]
[1744777442682,3.37205098,125.63,125.62,7.9606]
[1744777443985,3.37205098,125.63,125.61,8.01906274]